[Event "Masters Tournament (MTO)"]
[Site "Biel, Switzerland"]
[Date "2026.07.15"]
[Round "3.11"]
[White "Cervelli, Eduard"]
[Black "Elmi, Saad Abobaker"]
[Result "0-1"]
[TimeControl "100+30+30sec/move"]
[WhiteTitle "-"]
[BlackTitle "-"]
[WhiteFideId "1351800"]
[BlackFideId "1553259"]
[WhiteElo "2197"]
[BlackElo "2399"]

1. e4 {[%clk 01:40:55]} {[%emt 00:00:03]} c5 {[%clk 01:40:52]} {[%emt
00:00:11]} 2. Nf3 {[%clk 01:41:08]} {[%emt 00:00:15]} e6 {[%clk 01:41:12]}
{[%emt 00:00:10]} 3. d4 {[%clk 01:41:14]} {[%emt 00:00:24]} cxd4 {[%clk
01:41:29]} {[%emt 00:00:13]} 4. Nxd4 {[%clk 01:41:35]} {[%emt 00:00:08]} Nc6
{[%clk 01:39:56]} {[%emt 00:02:04]} 5. Be2 {[%clk 01:41:21]} {[%emt 00:00:44]}
Qc7 {[%clk 01:39:43]} {[%emt 00:00:43]} 6. Nc3 {[%clk 01:40:35]} {[%emt
00:01:16]} Nf6 {[%clk 01:39:25]} {[%emt 00:00:47]} 7. Ndb5 {[%clk 01:40:26]}
{[%emt 00:00:39]} Qb8 {[%clk 01:39:01]} {[%emt 00:00:54]} 8. f4 {[%clk
01:40:44]} {[%emt 00:00:12]} a6 {[%clk 01:34:24]} {[%emt 00:05:08]} 9. e5
{[%clk 01:41:00]} {[%emt 00:00:14]} axb5 {[%clk 01:31:50]} {[%emt 00:03:05]} 10.
exf6 {[%clk 01:41:21]} {[%emt 00:00:08]} gxf6 {[%clk 01:31:13]} {[%emt
00:01:07]} 11. Nxb5 {[%clk 01:40:49]} {[%emt 00:01:01]} Bc5 {[%clk 01:26:06]}
{[%emt 00:05:37]} 12. c3 {[%clk 01:40:19]} {[%emt 00:01:00]} d5 {[%clk
01:25:11]} {[%emt 00:01:25]} 13. b4 {[%clk 01:35:40]} {[%emt 00:05:09]} Bb6
{[%clk 01:24:35]} {[%emt 00:01:05]} 14. a4 {[%clk 01:35:11]} {[%emt 00:01:00]}
Bd7 {[%clk 01:20:05]} {[%emt 00:04:59]} 15. a5 {[%clk 01:31:24]} {[%emt
00:04:18]} Ne7 {[%clk 01:18:03]} {[%emt 00:02:32]} 16. Ra3 {[%clk 01:27:49]}
{[%emt 00:04:06]} Ba7 {[%clk 01:11:59]} {[%emt 00:06:33]} 17. c4 {[%clk
01:23:27]} {[%emt 00:04:52]} Bxb5 {[%clk 01:01:30]} {[%emt 00:10:59]} 18. cxb5
{[%clk 01:23:40]} {[%emt 00:00:17]} Qd6 {[%clk 01:00:31]} {[%emt 00:01:30]} 19.
Qd2 {[%clk 01:19:15]} {[%emt 00:04:54]} Rg8 {[%clk 00:51:21]} {[%emt 00:09:41]}
20. b6 {[%clk 01:15:58]} {[%emt 00:03:46]} Bb8 {[%clk 00:51:49]} {[%emt
00:00:02]} 21. O-O {[%clk 01:11:47]} {[%emt 00:04:40]} Nc6 {[%clk 00:47:44]}
{[%emt 00:04:35]} 22. Bb5 {[%clk 01:05:09]} {[%emt 00:07:09]} Ke7 {[%clk
00:41:39]} {[%emt 00:06:35]} 23. Bxc6 {[%clk 01:00:32]} {[%emt 00:05:07]} Qxc6
{[%clk 00:41:40]} {[%emt 00:00:28]} 24. f5 {[%clk 00:41:54]} {[%emt 00:19:08]}
d4 {[%clk 00:35:36]} {[%emt 00:06:35]} 25. fxe6 {[%clk 00:40:38]} {[%emt
00:01:46]} fxe6 {[%clk 00:35:31]} {[%emt 00:00:35]} 26. b5 {[%clk 00:35:42]}
{[%emt 00:05:27]} Qxb5 {[%clk 00:31:59]} {[%emt 00:04:02]} 27. Qh6 {[%clk
00:22:24]} {[%emt 00:13:47]} Rf8 {[%clk 00:23:39]} {[%emt 00:08:50]} 28. Rxf6
{[%clk 00:21:28]} {[%emt 00:01:26]} Rxf6 {[%clk 00:22:52]} {[%emt 00:01:17]} 29.
Qg7+ {[%clk 00:21:22]} {[%emt 00:00:36]} Rf7 {[%clk 00:22:55]} {[%emt
00:00:28]} 30. Bg5+ {[%clk 00:20:47]} {[%emt 00:01:04]} Kd6 {[%clk 00:22:54]}
{[%emt 00:00:30]} 31. Qxf7 {[%clk 00:13:19]} {[%emt 00:07:59]} Qxg5 {[%clk
00:23:13]} {[%emt 00:00:11]} 32. Qxb7 {[%clk 00:11:11]} {[%emt 00:02:38]} Qc1+
{[%clk 00:23:00]} {[%emt 00:00:43]} 33. Kf2 {[%clk 00:11:36]} {[%emt 00:00:05]}
Qxa3 {[%clk 00:22:22]} {[%emt 00:01:09]} 34. Qxa8 {[%clk 00:11:57]} {[%emt
00:00:08]} Qe3+ {[%clk 00:21:56]} {[%emt 00:00:56]} 35. Kf1 {[%clk 00:12:23]}
{[%emt 00:00:04]} Qf4+ {[%clk 00:21:43]} {[%emt 00:00:42]} 36. Ke2 {[%clk
00:11:08]} {[%emt 00:01:46]} Kc5 {[%clk 00:19:44]} {[%emt 00:02:28]} 37. a6
{[%clk 00:02:13]} {[%emt 00:09:27]} Qe3+ {[%clk 00:19:43]} {[%emt 00:00:31]} 38.
Kf1 {[%clk 00:02:33]} {[%emt 00:00:10]} d3 {[%clk 00:19:49]} {[%emt 00:00:24]}
39. Qxb8 {[%clk 00:02:58]} {[%emt 00:00:04]} Qe2+ {[%clk 00:20:11]} {[%emt
00:00:08]} 40. Kg1 {[%clk 00:03:24]} {[%emt 00:00:04]} Qe1# {[%clk 00:20:34]}
{[%emt 00:00:07]} 0-1

[Event "Masters Tournament (MTO)"]
[Site "Biel, Switzerland"]
[Date "2026.07.15"]
[Round "3.12"]
[White "Tkhoruk, Roman"]
[Black "Arsenie, Cristian Marc"]
[Result "1-0"]
[TimeControl "100+30+30sec/move"]
[WhiteTitle "-"]
[BlackTitle "-"]
[WhiteFideId "34161589"]
[BlackFideId "1345923"]
[WhiteElo "1967"]
[BlackElo "2300"]

1. e4 {[%clk 01:40:56]} {[%emt 00:00:04]} c5 {[%clk 01:40:55]} {[%emt
00:00:04]} 2. Nf3 {[%clk 01:41:17]} {[%emt 00:00:10]} d6 {[%clk 01:41:22]}
{[%emt 00:00:04]} 3. Bb5+ {[%clk 01:41:37]} {[%emt 00:00:09]} Nd7 {[%clk
01:41:48]} {[%emt 00:00:05]} 4. O-O {[%clk 01:41:56]} {[%emt 00:00:10]} a6
{[%clk 01:42:14]} {[%emt 00:00:04]} 5. Bd3 {[%clk 01:42:15]} {[%emt 00:00:11]}
Ngf6 {[%clk 01:42:38]} {[%emt 00:00:05]} 6. c3 {[%clk 01:42:37]} {[%emt
00:00:09]} b5 {[%clk 01:43:04]} {[%emt 00:00:04]} 7. Bc2 {[%clk 01:42:58]}
{[%emt 00:00:09]} Bb7 {[%clk 01:43:24]} {[%emt 00:00:10]} 8. Re1 {[%clk
01:43:20]} {[%emt 00:00:08]} Qc7 {[%clk 01:43:47]} {[%emt 00:00:06]} 9. d3
{[%clk 01:38:16]} {[%emt 00:05:35]} Rc8 {[%clk 01:43:07]} {[%emt 00:01:11]} 10.
h3 {[%clk 01:37:47]} {[%emt 00:00:59]} g6 {[%clk 01:41:32]} {[%emt 00:02:05]}
11. Bf4 {[%clk 01:30:11]} {[%emt 00:08:05]} Bg7 {[%clk 01:40:03]} {[%emt
00:01:59]} 12. Qc1 {[%clk 01:26:40]} {[%emt 00:04:00]} O-O {[%clk 01:38:32]}
{[%emt 00:02:01]} 13. Bh6 {[%clk 01:23:11]} {[%emt 00:04:00]} e5 {[%clk
01:35:39]} {[%emt 00:03:23]} 14. Bxg7 {[%clk 01:21:26]} {[%emt 00:02:14]} Kxg7
{[%clk 01:35:37]} {[%emt 00:00:32]} 15. c4 {[%clk 01:12:43]} {[%emt 00:09:14]}
Nb6 {[%clk 01:25:21]} {[%emt 00:10:45]} 16. b3 {[%clk 01:10:26]} {[%emt
00:02:49]} h6 {[%clk 01:21:34]} {[%emt 00:04:15]} 17. Nc3 {[%clk 01:09:14]}
{[%emt 00:01:42]} b4 {[%clk 01:19:34]} {[%emt 00:02:32]} 18. Nd5 {[%clk
01:08:51]} {[%emt 00:00:53]} Nbxd5 {[%clk 01:13:36]} {[%emt 00:06:27]} 19. exd5
{[%clk 00:58:48]} {[%emt 00:10:33]} Nh5 {[%clk 01:10:49]} {[%emt 00:03:17]} 20.
g3 {[%clk 00:57:48]} {[%emt 00:01:30]} a5 {[%clk 01:06:46]} {[%emt 00:04:33]}
21. Kg2 {[%clk 00:56:11]} {[%emt 00:02:06]} f5 {[%clk 01:03:17]} {[%emt
00:04:00]} 22. Bd1 {[%clk 00:53:33]} {[%emt 00:03:08]} Nf6 {[%clk 01:01:41]}
{[%emt 00:02:05]} 23. Nh4 {[%clk 00:37:31]} {[%emt 00:16:33]} Rce8 {[%clk
00:58:45]} {[%emt 00:03:26]} 24. Bc2 {[%clk 00:26:13]} {[%emt 00:11:47]} Bc8
{[%clk 00:56:36]} {[%emt 00:02:39]} 25. f4 {[%clk 00:25:12]} {[%emt 00:01:32]}
Kh7 {[%clk 00:51:43]} {[%emt 00:05:23]} 26. Kh2 {[%clk 00:21:49]} {[%emt
00:03:53]} Rg8 {[%clk 00:48:17]} {[%emt 00:03:56]} 27. Nf3 {[%clk 00:20:46]}
{[%emt 00:01:32]} Nh5 {[%clk 00:42:48]} {[%emt 00:06:00]} 28. Qd2 {[%clk
00:19:50]} {[%emt 00:01:26]} Qg7 {[%clk 00:40:26]} {[%emt 00:02:51]} 29. h4
{[%clk 00:10:30]} {[%emt 00:09:51]} Nf6 {[%clk 00:39:22]} {[%emt 00:01:34]} 30.
Kg2 {[%clk 00:09:52]} {[%emt 00:01:08]} e4 {[%clk 00:35:01]} {[%emt 00:04:52]}
31. Ng1 {[%clk 00:09:25]} {[%emt 00:00:56]} e3 {[%clk 00:31:03]} {[%emt
00:04:28]} 32. Qe2 {[%clk 00:06:28]} {[%emt 00:03:27]} Bb7 {[%clk 00:25:00]}
{[%emt 00:06:33]} 33. Nh3 {[%clk 00:06:19]} {[%emt 00:00:39]} Ng4 {[%clk
00:23:20]} {[%emt 00:02:10]} 34. Rab1 {[%clk 00:05:27]} {[%emt 00:01:22]} Re7
{[%clk 00:22:14]} {[%emt 00:01:36]} 35. Qf3 {[%clk 00:04:43]} {[%emt 00:01:14]}
Rge8 {[%clk 00:20:38]} {[%emt 00:02:05]} 36. Re2 {[%clk 00:04:54]} {[%emt
00:00:19]} Qd4 {[%clk 00:18:54]} {[%emt 00:02:14]} 37. Rbe1 {[%clk 00:04:11]}
{[%emt 00:01:15]} Nf6 {[%clk 00:16:36]} {[%emt 00:02:47]} 38. Kh2 {[%clk
00:03:51]} {[%emt 00:00:49]} a4 {[%clk 00:16:13]} {[%emt 00:00:54]} 39. Ng1
{[%clk 00:02:50]} {[%emt 00:01:31]} axb3 {[%clk 00:15:21]} {[%emt 00:01:22]} 40.
axb3 {[%clk 00:03:13]} {[%emt 00:00:07]} Ra8 {[%clk 00:13:16]} {[%emt
00:02:35]} 41. Qf1 {[%clk 00:30:12]} {[%emt 00:03:30]} Ng4+ {[%clk 00:42:51]}
{[%emt 00:00:56]} 42. Kh3 {[%clk 00:29:17]} {[%emt 00:01:25]} Ree8 {[%clk
00:39:54]} {[%emt 00:03:27]} 43. Nf3 {[%clk 00:28:28]} {[%emt 00:01:18]} Qc3
{[%clk 00:39:38]} {[%emt 00:00:46]} 44. h5 {[%clk 00:24:40]} {[%emt 00:04:19]}
Qf6 {[%clk 00:36:13]} {[%emt 00:03:54]} 45. hxg6+ {[%clk 00:24:00]} {[%emt
00:01:11]} Qxg6 {[%clk 00:36:06]} {[%emt 00:00:37]} 46. Nh4 {[%clk 00:24:08]}
{[%emt 00:00:21]} Qh5 {[%clk 00:31:50]} {[%emt 00:04:46]} 47. d4 {[%clk
00:23:22]} {[%emt 00:01:17]} Nf2+ {[%clk 00:28:22]} {[%emt 00:03:59]} 48. Kg2
{[%clk 00:22:27]} {[%emt 00:01:23]} cxd4 {[%clk 00:27:26]} {[%emt 00:01:27]} 49.
Bxf5+ {[%clk 00:21:45]} {[%emt 00:01:12]} Kg7 {[%clk 00:25:01]} {[%emt
00:02:55]} 50. Bg6 {[%clk 00:19:30]} {[%emt 00:02:45]} Bxd5+ {[%clk 00:24:09]}
{[%emt 00:01:22]} 51. Kh2 {[%clk 00:19:17]} {[%emt 00:00:43]} Qg4 {[%clk
00:21:20]} {[%emt 00:03:19]} 52. Bf5 {[%clk 00:19:26]} {[%emt 00:00:21]} Bf3
{[%clk 00:18:54]} {[%emt 00:02:56]} 53. Bxg4 {[%clk 00:17:51]} {[%emt
00:02:05]} Nxg4+ {[%clk 00:18:45]} {[%emt 00:00:40]} 54. Kh3 {[%clk 00:16:46]}
{[%emt 00:01:34]} Bxe2 {[%clk 00:18:44]} {[%emt 00:00:31]} 55. Qxe2 {[%clk
00:16:23]} {[%emt 00:00:53]} Nf2+ {[%clk 00:18:35]} {[%emt 00:00:39]} 56. Kg2
{[%clk 00:16:05]} {[%emt 00:00:47]} d3 {[%clk 00:18:42]} {[%emt 00:00:24]} 57.
Qh5 {[%clk 00:16:20]} {[%emt 00:00:14]} d2 {[%clk 00:17:29]} {[%emt 00:01:43]}
58. Nf5+ {[%clk 00:13:25]} {[%emt 00:03:25]} Kf6 {[%clk 00:17:25]} {[%emt
00:00:35]} 59. Rxe3 {[%clk 00:13:26]} {[%emt 00:00:29]} d1=Q {[%clk 00:15:56]}
{[%emt 00:01:59]} 60. Qxh6+ {[%clk 00:13:45]} {[%emt 00:00:10]} Kxf5 {[%clk
00:16:10]} {[%emt 00:00:17]} 61. Qg5# {[%clk 00:13:34]} {[%emt 00:00:09]} 1-0

[Event "Masters Tournament (MTO)"]
[Site "Biel, Switzerland"]
[Date "2026.07.15"]
[Round "3.13"]
[White "Coban, Ege"]
[Black "Nguyen, Thi Mai Hung"]
[Result "1/2-1/2"]
[TimeControl "100+30+30sec/move"]
[WhiteTitle "-"]
[BlackTitle "-"]
[WhiteFideId "26320304"]
[BlackFideId "12401676"]
[WhiteElo "1986"]
[BlackElo "2260"]

1. e4 {[%clk 01:40:57]} {[%emt 00:00:02]} e6 {[%clk 01:40:50]} {[%emt
00:00:12]} 2. d4 {[%clk 01:41:21]} {[%emt 00:00:07]} d5 {[%clk 01:41:16]}
{[%emt 00:00:02]} 3. Nc3 {[%clk 01:41:47]} {[%emt 00:00:06]} Nf6 {[%clk
01:40:41]} {[%emt 00:01:03]} 4. e5 {[%clk 01:42:05]} {[%emt 00:00:13]} Nfd7
{[%clk 01:41:06]} {[%emt 00:00:05]} 5. Nce2 {[%clk 01:42:33]} {[%emt 00:00:02]}
c5 {[%clk 01:41:00]} {[%emt 00:00:36]} 6. c3 {[%clk 01:42:59]} {[%emt
00:00:04]} Nc6 {[%clk 01:34:53]} {[%emt 00:06:37]} 7. Nf3 {[%clk 01:43:22]}
{[%emt 00:00:06]} b5 {[%clk 01:28:29]} {[%emt 00:06:55]} 8. a3 {[%clk
01:41:16]} {[%emt 00:02:36]} Qb6 {[%clk 01:24:26]} {[%emt 00:04:33]} 9. Nf4
{[%clk 01:41:27]} {[%emt 00:00:18]} cxd4 {[%clk 01:22:17]} {[%emt 00:02:40]} 10.
cxd4 {[%clk 01:41:48]} {[%emt 00:00:09]} Be7 {[%clk 01:19:23]} {[%emt
00:03:24]} 11. h4 {[%clk 01:41:00]} {[%emt 00:01:18]} b4 {[%clk 01:18:55]}
{[%emt 00:00:58]} 12. Be3 {[%clk 01:37:55]} {[%emt 00:03:34]} Ba6 {[%clk
01:15:33]} {[%emt 00:03:53]} 13. Ng5 {[%clk 01:33:18]} {[%emt 00:05:06]} Nd8
{[%clk 01:00:11]} {[%emt 00:15:52]} 14. Rh3 {[%clk 01:30:17]} {[%emt 00:03:31]}
h6 {[%clk 00:52:28]} {[%emt 00:08:14]} 15. Qh5 {[%clk 01:25:07]} {[%emt
00:05:39]} Bxf1 {[%clk 00:40:11]} {[%emt 00:12:48]} 16. Kxf1 {[%clk 01:24:34]}
{[%emt 00:01:03]} Nf8 {[%clk 00:36:53]} {[%emt 00:03:48]} 17. Nxf7 {[%clk
01:09:48]} {[%emt 00:15:16]} Nxf7 {[%clk 00:36:51]} {[%emt 00:00:33]} 18. Rf3
{[%clk 01:10:17]} {[%emt 00:00:01]} bxa3 {[%clk 00:31:58]} {[%emt 00:05:22]} 19.
bxa3 {[%clk 01:09:02]} {[%emt 00:01:45]} Rc8 {[%clk 00:24:23]} {[%emt
00:08:05]} 20. Kg1 {[%clk 01:06:59]} {[%emt 00:02:33]} Qa6 {[%clk 00:14:03]}
{[%emt 00:10:50]} 21. Ng6 {[%clk 01:01:15]} {[%emt 00:06:14]} Nxg6 {[%clk
00:14:12]} {[%emt 00:00:21]} 22. Qxg6 {[%clk 01:01:43]} {[%emt 00:00:02]} Rf8
{[%clk 00:14:07]} {[%emt 00:00:35]} 23. Qxg7 {[%clk 01:02:07]} {[%emt
00:00:06]} Nd8 {[%clk 00:06:25]} {[%emt 00:08:12]} 24. Qg6+ {[%clk 01:01:05]}
{[%emt 00:01:32]} Kd7 {[%clk 00:06:53]} {[%emt 00:00:02]} 25. Rxf8 {[%clk
01:01:19]} {[%emt 00:00:16]} Bxf8 {[%clk 00:07:21]} {[%emt 00:00:02]} 26. Qh7+
{[%clk 01:01:37]} {[%emt 00:00:11]} Ke8 {[%clk 00:03:54]} {[%emt 00:03:57]} 27.
Bxh6 {[%clk 01:00:32]} {[%emt 00:01:35]} Bxh6 {[%clk 00:03:28]} {[%emt
00:00:56]} 28. Qxh6 {[%clk 01:00:54]} {[%emt 00:00:08]} Qd3 {[%clk 00:01:30]}
{[%emt 00:02:28]} 29. Qh8+ {[%clk 01:00:15]} {[%emt 00:01:10]} Kf7 {[%clk
00:01:45]} {[%emt 00:00:15]} 30. Qf6+ {[%clk 01:00:39]} {[%emt 00:00:06]} Ke8
{[%clk 00:02:11]} {[%emt 00:00:03]} 31. h5 {[%clk 00:55:38]} {[%emt 00:05:31]}
Qxd4 {[%clk 00:02:30]} {[%emt 00:00:12]} 32. Rf1 {[%clk 00:55:29]} {[%emt
00:00:38]} Qg4 {[%clk 00:01:32]} {[%emt 00:01:28]} 33. h6 {[%clk 00:55:13]}
{[%emt 00:00:46]} Qh5 {[%clk 00:00:48]} {[%emt 00:01:14]} 34. Qh8+ {[%clk
00:51:04]} {[%emt 00:04:39]} Kd7 {[%clk 00:00:57]} {[%emt 00:00:21]} 35. Qg7+
{[%clk 00:51:26]} {[%emt 00:00:08]} Qf7 {[%clk 00:00:37]} {[%emt 00:00:50]} 36.
Rb1 {[%clk 00:51:41]} {[%emt 00:00:15]} Ke7 {[%clk 00:00:46]} {[%emt 00:00:21]}
37. Qg5+ {[%clk 00:51:07]} {[%emt 00:01:05]} Ke8 {[%clk 00:01:01]} {[%emt
00:00:14]} 38. Rb3 {[%clk 00:50:28]} {[%emt 00:01:09]} Qh7 {[%clk 00:00:49]}
{[%emt 00:00:42]} 39. Qf6 {[%clk 00:50:02]} {[%emt 00:00:56]} Qf7 {[%clk
00:00:36]} {[%emt 00:00:43]} 40. Qh4 {[%clk 00:47:36]} {[%emt 00:02:56]} Rc4
{[%clk 00:00:33]} {[%emt 00:00:34]} 41. Qg5 {[%clk 00:46:28]} {[%emt 00:01:38]}
Qf4 {[%clk 00:22:21]} {[%emt 00:08:41]} 42. Qg6+ {[%clk 01:08:07]} {[%emt
00:08:52]} Qf7 {[%clk 00:14:41]} {[%emt 00:08:10]} 43. Qg5 {[%clk 00:58:39]}
{[%emt 00:09:58]} Qf4 {[%clk 00:15:09]} {[%emt 00:00:02]} 44. Qg8+ {[%clk
00:54:36]} {[%emt 00:04:33]} Kd7 {[%clk 00:13:27]} {[%emt 00:02:12]} 45. Qg7+
{[%clk 00:54:53]} {[%emt 00:00:12]} Kc6 {[%clk 00:11:19]} {[%emt 00:02:38]} 46.
Rb1 {[%clk 00:54:38]} {[%emt 00:00:45]} Rc1+ {[%clk 00:03:20]} {[%emt
00:08:31]} 47. Rxc1+ {[%clk 00:55:03]} {[%emt 00:00:04]} Qxc1+ {[%clk
00:03:46]} {[%emt 00:00:04]} 48. Kh2 {[%clk 00:55:28]} {[%emt 00:00:04]} Qf4+
{[%clk 00:04:13]} {[%emt 00:00:03]} 49. Kg1 {[%clk 00:55:33]} {[%emt 00:00:25]}
Qc1+ {[%clk 00:04:37]} {[%emt 00:00:06]} 50. Kh2 {[%clk 00:55:54]} {[%emt
00:00:10]} Qf4+ {[%clk 00:05:03]} {[%emt 00:00:04]} 51. Kg1 {[%clk 00:55:08]}
{[%emt 00:01:16]} Qc1+ {[%clk 00:04:11]} {[%emt 00:01:21]} 1/2-1/2

[Event "Masters Tournament (MTO)"]
[Site "Biel, Switzerland"]
[Date "2026.07.15"]
[Round "3.14"]
[White "Gireada, Daniel"]
[Black "Ling, Chenxuan"]
[Result "1/2-1/2"]
[TimeControl "100+30+30sec/move"]
[WhiteTitle "-"]
[BlackTitle "-"]
[WhiteFideId "1206451"]
[BlackFideId "30983118"]
[WhiteElo "2255"]
[BlackElo "2166"]

1. d4 {[%clk 01:40:57]} Nf6 {[%clk 01:38:43]} {[%emt 00:02:18]} 2. c4 {[%clk
01:40:56]} {[%emt 00:00:30]} e6 {[%clk 01:38:55]} {[%emt 00:00:18]} 3. Nf3
{[%clk 01:41:07]} {[%emt 00:00:19]} d5 {[%clk 01:39:13]} {[%emt 00:00:13]} 4.
Nc3 {[%clk 01:41:15]} {[%emt 00:00:21]} Bb4 {[%clk 01:38:59]} {[%emt 00:00:44]}
5. Bg5 {[%clk 01:41:17]} {[%emt 00:00:28]} h6 {[%clk 01:39:18]} {[%emt
00:00:12]} 6. Bxf6 {[%clk 01:39:37]} {[%emt 00:02:09]} Qxf6 {[%clk 01:39:45]}
{[%emt 00:00:03]} 7. e3 {[%clk 01:37:12]} {[%emt 00:02:55]} O-O {[%clk
01:37:49]} {[%emt 00:02:26]} 8. cxd5 {[%clk 01:36:39]} {[%emt 00:01:03]} exd5
{[%clk 01:38:14]} {[%emt 00:00:06]} 9. Qb3 {[%clk 01:36:23]} {[%emt 00:00:45]}
Bxc3+ {[%clk 01:37:13]} {[%emt 00:01:31]} 10. Qxc3 {[%clk 01:35:40]} {[%emt
00:01:12]} c6 {[%clk 01:37:16]} {[%emt 00:00:28]} 11. Bd3 {[%emt 00:04:07]} Bf5
{[%clk 01:36:15]} 12. O-O {[%clk 01:30:39]} {[%emt 00:03:24]} Bxd3 {[%clk
01:32:51]} {[%emt 00:03:54]} 13. Qxd3 {[%clk 01:30:59]} {[%emt 00:00:10]} Nd7
{[%clk 01:33:15]} {[%emt 00:00:05]} 14. Rac1 {[%clk 01:29:34]} {[%emt
00:01:56]} Qd6 {[%clk 01:32:36]} {[%emt 00:01:09]} 15. Rfe1 {[%clk 01:20:56]}
{[%emt 00:09:07]} Rfe8 {[%clk 01:28:02]} {[%emt 00:05:04]} 16. Rc2 {[%clk
01:13:02]} {[%emt 00:08:25]} a5 {[%clk 01:25:48]} {[%emt 00:02:44]} 17. Rce2
{[%clk 01:05:36]} {[%emt 00:07:56]} Re6 {[%clk 01:15:52]} {[%emt 00:10:27]} 18.
h3 {[%clk 00:58:10]} {[%emt 00:07:55]} Rae8 {[%clk 01:08:10]} {[%emt 00:08:11]}
19. Qc3 {[%clk 00:56:25]} {[%emt 00:02:17]} Ra8 {[%clk 01:06:54]} {[%emt
00:01:46]} 20. e4 {[%clk 00:47:33]} {[%emt 00:09:20]} dxe4 {[%clk 01:06:19]}
{[%emt 00:01:06]} 21. Rxe4 {[%clk 00:47:55]} {[%emt 00:00:08]} Rxe4 {[%clk
01:06:41]} {[%emt 00:00:09]} 22. Rxe4 {[%clk 00:48:16]} {[%emt 00:00:08]} Nf6
{[%clk 01:06:41]} {[%emt 00:00:30]} 23. Re5 {[%clk 00:48:28]} {[%emt 00:00:18]}
Nd5 {[%clk 01:04:33]} {[%emt 00:02:38]} 24. Qe1 {[%clk 00:48:35]} {[%emt
00:00:22]} Qd7 {[%clk 01:00:58]} {[%emt 00:04:06]} 25. Re4 {[%clk 00:38:37]}
{[%emt 00:10:27]} a4 {[%clk 00:56:53]} {[%emt 00:04:36]} 26. Ne5 {[%clk
00:35:12]} {[%emt 00:03:54]} Qd8 {[%clk 00:45:48]} {[%emt 00:11:36]} 27. Nf3
{[%clk 00:30:40]} {[%emt 00:05:02]} Qd7 {[%clk 00:46:07]} {[%emt 00:00:12]} 28.
a3 {[%clk 00:30:19]} {[%emt 00:00:50]} f6 {[%clk 00:43:30]} {[%emt 00:03:07]}
29. Qe2 {[%clk 00:22:03]} {[%emt 00:08:46]} Kf8 {[%clk 00:32:41]} {[%emt
00:11:19]} 30. Nh4 {[%clk 00:09:20]} {[%emt 00:13:12]} Re8 {[%clk 00:28:25]}
{[%emt 00:04:47]} 31. Ng6+ {[%clk 00:09:40]} {[%emt 00:00:11]} Kf7 {[%clk
00:28:48]} {[%emt 00:00:07]} 32. Qh5 {[%clk 00:10:08]} Kg8 {[%clk 00:29:08]}
{[%emt 00:00:10]} 33. Rxe8+ {[%clk 00:09:00]} {[%emt 00:01:38]} Qxe8 {[%clk
00:29:37]} {[%emt 00:00:02]} 34. Qf5 {[%clk 00:09:21]} {[%emt 00:00:09]} Kf7
{[%clk 00:25:31]} {[%emt 00:04:35]} 35. h4 {[%emt 00:07:50]} Qe1+ {[%clk
00:22:16]} {[%emt 00:00:16]} 36. Kh2 {[%clk 00:05:55]} {[%emt 00:00:05]} Ne7
{[%clk 00:22:31]} {[%emt 00:00:15]} 37. Nxe7 {[%clk 00:02:19]} {[%emt
00:04:06]} Qxe7 {[%clk 00:23:00]} {[%emt 00:00:02]} 38. Qf4 {[%clk 00:01:39]}
{[%emt 00:01:09]} Qe2 {[%clk 00:22:14]} {[%emt 00:01:16]} 39. Qc7+ {[%clk
00:01:58]} {[%emt 00:00:12]} Kg6 {[%clk 00:22:02]} {[%emt 00:00:42]} 40. Qxb7
{[%clk 00:00:38]} {[%emt 00:01:50]} Qxf2 {[%clk 00:22:24]} {[%emt 00:00:07]} 41.
Qb4 {[%clk 00:27:55]} {[%emt 00:03:13]} Qxh4+ {[%clk 00:50:18]} {[%emt
00:02:36]} 42. Kg1 {[%clk 00:26:34]} {[%emt 00:01:50]} Qe4 {[%clk 00:49:43]}
{[%emt 00:01:06]} 43. Qxa4 {[%clk 00:19:00]} {[%emt 00:08:04]} c5 {[%clk
00:49:19]} {[%emt 00:00:54]} 44. Qd1 {[%clk 00:19:26]} {[%emt 00:00:05]} cxd4
{[%clk 00:49:19]} {[%emt 00:00:29]} 45. a4 {[%clk 00:19:46]} {[%emt 00:00:10]}
d3 {[%clk 00:47:46]} {[%emt 00:02:04]} 46. a5 {[%clk 00:19:47]} {[%emt
00:00:29]} Qe3+ {[%clk 00:44:44]} {[%emt 00:03:30]} 47. Kf1 {[%clk 00:20:09]}
{[%emt 00:00:09]} Qf4+ {[%clk 00:44:51]} {[%emt 00:00:23]} 48. Ke1 {[%clk
00:16:37]} {[%emt 00:04:02]} Qe5+ {[%clk 00:44:43]} {[%emt 00:00:35]} 49. Kf1
{[%clk 00:16:36]} {[%emt 00:00:34]} Qf5+ {[%clk 00:41:06]} {[%emt 00:04:07]} 50.
Kg1 {[%clk 00:14:25]} {[%emt 00:02:40]} Qxa5 {[%clk 00:36:48]} {[%emt
00:04:49]} 51. Qxd3+ {[%clk 00:14:49]} {[%emt 00:00:05]} Qf5 {[%clk 00:37:09]}
{[%emt 00:00:10]} 52. Qg3+ {[%clk 00:11:44]} {[%emt 00:03:34]} Kh7 {[%clk
00:35:20]} {[%emt 00:02:21]} 53. b3 {[%clk 00:10:33]} {[%emt 00:01:41]} g5
{[%clk 00:33:44]} {[%emt 00:02:05]} 54. Qc7+ {[%clk 00:09:36]} {[%emt
00:01:27]} Kg6 {[%clk 00:34:05]} {[%emt 00:00:09]} 55. Qc4 {[%clk 00:09:57]}
{[%emt 00:00:09]} Qe5 {[%clk 00:32:44]} {[%emt 00:01:52]} 56. b4 {[%clk
00:09:06]} {[%emt 00:01:21]} h5 {[%clk 00:31:39]} {[%emt 00:01:34]} 57. b5
{[%clk 00:08:31]} {[%emt 00:01:05]} g4 {[%clk 00:31:25]} {[%emt 00:00:45]} 58.
Qd3+ {[%clk 00:07:58]} {[%emt 00:01:02]} f5 {[%clk 00:30:22]} {[%emt 00:01:33]}
59. g3 {[%clk 00:07:11]} {[%emt 00:01:17]} h4 {[%clk 00:12:56]} {[%emt
00:17:57]} 60. gxh4 {[%clk 00:07:18]} {[%emt 00:00:22]} Kh5 {[%clk 00:13:09]}
{[%emt 00:00:17]} 61. Qd8 {[%clk 00:06:31]} {[%emt 00:01:17]} 1/2-1/2